bitfinex/quotes_ETHUSD_20251206
["timestamp","ask_amount","ask_price","bid_price","bid_amount"]
[1765042965695,0.9412,3051.8,3051.7,0.001]
[1765042969727,0.4517,3051.8,3051.7,0.001]
[1765042970230,0.65493246,3051.9,3051.7,0.001]
[1765042971713,0.65493246,3051.9,3051.4,7.07043243]
[1765042971908,0.65493246,3051.9,3051.4,7.49583243]
[1765042972809,0.65493246,3052.1,3051.8,0.4254]
[1765042973011,0.65493246,3052.1,3052.0,0.4254]
[1765042973811,0.65493246,3052.1,3051.8,0.9424]
[1765042973812,0.65493246,3052.1,3051.8,0.517]
[1765042975531,0.65493246,3052.1,3051.8,3.79373352]
[1765042976335,0.65493246,3051.9,3051.8,0.517]
[1765042977136,0.65493246,3051.9,3051.8,3.7937547]
[1765042977340,0.65493246,3051.9,3051.8,4.2191547]
[1765042978135,1.14443246,3052.3,3051.8,4.2191547]
[1765042978336,0.65493246,3052.1,3052.0,0.4254]
[1765042980215,4.42555373,3052.5,3052.0,0.4254]
[1765042980216,0.65493246,3052.4,3052.0,0.4254]
[1765042980421,0.65493246,3052.2,3052.0,0.4254]
[1765042981506,0.4917,3052.1,3051.8,3.79374417]
[1765042981709,0.4917,3052.1,3051.8,0.517]
[1765042981710,0.65493246,3052.0,3051.8,0.517]
[1765042982648,0.4917,3051.9,3051.8,0.517]
[1765042982848,0.4917,3051.9,3051.5,3.27707075]
[1765042983148,0.65493246,3051.8,3051.6,0.517]
[1765042983735,0.4917,3051.7,3051.6,0.517]
[1765042983935,0.9863,3051.7,3051.6,0.517]
[1765042984135,0.4917,3051.7,3051.6,0.517]
[1765042985829,0.65493246,3051.8,3051.6,0.517]
[1765042986656,1.14953246,3051.8,3051.6,0.517]
[1765042990561,0.65493246,3051.8,3051.6,0.517]
[1765042991162,1.12683246,3051.8,3051.6,0.517]
[1765042994272,0.65493246,3051.8,3051.6,0.517]
[1765042996668,0.65493246,3051.8,3051.6,3.79395059]
[1765042996873,0.65493246,3052.0,3051.7,0.4254]
[1765042997082,1.12683246,3052.0,3051.7,0.4254]
[1765042997581,0.65493246,3052.0,3051.7,0.4254]
[1765042998109,0.65493246,3052.0,3051.9,0.4254]
[1765042999483,0.65493246,3052.2,3051.9,0.4254]
[1765042999654,0.65493246,3052.2,3052.1,0.4254]
[1765043001268,1.58063246,3052.2,3051.2,6.9386622]
[1765043001591,1.10873246,3051.7,3051.5,3.27699867]
[1765043001993,1.10873246,3051.7,3051.5,3.27706213]
[1765043002193,1.58063246,3051.7,3051.5,3.27706213]
[1765043003896,1.10873246,3051.7,3051.5,3.27706213]
[1765043004291,1.10873246,3051.7,3051.4,3.27716022]
[1765043004521,1.58063246,3051.7,3051.5,3.27705731]
[1765043004901,1.10873246,3051.7,3051.5,3.27705731]
[1765043007826,1.58063246,3051.7,3051.5,3.27705731]
[1765043008812,0.9257,3051.7,3051.4,3.79414953]
[1765043009124,0.4538,3051.5,3051.4,0.517]
[1765043009328,0.4538,3051.5,3051.1,0.001]
[1765043009492,1.07083246,3051.4,3051.2,3.27732698]
[1765043010491,0.65493246,3051.6,3051.2,3.27732698]
[1765043010740,1.12683246,3051.6,3051.2,3.27732698]
[1765043011629,1.12683246,3051.6,3051.2,4.26125452]
[1765043012198,0.65493246,3051.4,3051.2,4.26125452]
[1765043012831,1.12683246,3051.6,3051.2,4.26125452]
[1765043014132,1.12683246,3051.6,3051.2,7.53865357]
[1765043015017,0.65493246,3051.6,3051.2,7.53865357]
[1765043015219,0.65493246,3051.6,3051.5,0.4254]
[1765043016005,0.65493246,3052.2,3051.6,4.045974]
[1765043016234,0.65493246,3052.7,3052.1,0.5538]
[1765043016428,0.65493246,3052.7,3052.1,1.0708]
[1765043016429,0.65493246,3052.5,3052.1,1.0708]
[1765043016813,0.65493246,3052.5,3052.1,2.05443719]
[1765043017022,1.16068987,3052.5,3052.1,2.05443719]
[1765043017529,1.16068987,3052.5,3052.1,5.3308606]
[1765043018138,0.65493246,3052.3,3052.1,1.92603719]
[1765043018305,0.4538,3052.2,3052.1,1.50063719]
[1765043018506,0.65493246,3052.3,3052.1,1.50063719]
[1765043020248,1.12583246,3052.3,3052.1,0.517]
[1765043025457,0.47,3052.2,3052.1,0.517]
[1765043028588,1.12583246,3052.3,3052.1,0.517]
[1765043028791,0.65493246,3052.3,3052.1,0.517]
[1765043029885,1.12583246,3052.3,3052.1,0.517]
[1765043030202,0.47,3052.2,3052.1,0.517]
[1765043030894,0.9409,3052.2,3052.1,0.517]
[1765043031263,1.42019647,3052.2,3051.9,0.517]
[1765043031455,0.65493246,3052.0,3051.9,0.517]
[1765043033097,0.65493246,3052.0,3051.8,4.26049197]
[1765043033098,1.61293246,3052.0,3051.8,0.98375008]
[1765043033299,1.0338,3051.9,3051.6,3.79390392]
[1765043033674,0.65493246,3051.8,3051.6,3.79390392]
[1765043033876,1.0338,3051.9,3051.6,3.79390392]
[1765043034084,0.6499,3051.9,3051.6,3.79390392]
[1765043034397,0.65493246,3051.8,3051.6,3.79390392]
[1765043034818,0.65493246,3052.1,3051.7,0.4254]
[1765043034982,0.463,3052.1,3051.7,1.40916299]
[1765043035624,1.30483246,3052.3,3051.7,1.83456299]
[1765043035827,0.65493246,3052.1,3051.7,0.8508]
[1765043036119,0.84183246,3052.3,3051.8,0.98375008]
[1765043036284,0.84183246,3052.3,3052.0,0.4254]
[1765043038135,0.65493246,3052.1,3052.0,0.4254]
[1765043039087,1.14993246,3052.1,3051.8,4.26046437]
[1765043039411,1.14893246,3051.9,3051.8,0.98375008]
[1765043040025,1.14893246,3051.9,3051.6,4.50106682]
[1765043040213,1.14893246,3051.9,3051.7,3.27686207]
[1765043040414,1.14893246,3051.9,3051.8,0.98375008]
[1765043040592,1.14993246,3051.9,3051.7,3.27686207]
[1765043040792,1.14993246,3051.9,3051.7,4.26061215]
[1765043040994,1.61293246,3051.9,3051.7,4.26061215]
[1765043041291,1.14993246,3051.9,3051.7,4.26061215]
[1765043041694,1.61293246,3051.9,3051.7,4.26061215]
[1765043042174,0.3963,3051.8,3051.7,4.26061215]
[1765043043766,0.65493246,3051.9,3051.7,4.26061215]
[1765043044166,0.65493246,3051.9,3051.7,3.27686207]
[1765043044368,0.65493246,3051.9,3051.8,0.65493246]
[1765043045182,1.14993246,3051.9,3051.8,0.65493246]
[1765043045542,1.61293246,3051.9,3051.8,0.65493246]
[1765043046174,1.61293246,3051.9,3051.7,3.27686207]
[1765043046478,1.61293246,3051.9,3051.7,4.26062506]
[1765043047077,1.61293246,3051.9,3051.8,3.2767547]
[1765043047875,1.61293246,3051.9,3051.7,4.26055684]
[1765043048179,0.8593,3051.8,3051.6,3.27695962]
[1765043048477,1.14893246,3051.7,3051.6,3.27695962]
[1765043048646,1.61193246,3051.7,3051.6,3.27695962]
[1765043051744,1.14893246,3051.7,3051.6,3.27695962]
[1765043052164,1.60883246,3051.7,3051.6,3.27695962]
[1765043053800,1.14893246,3051.7,3051.6,3.27695962]
[1765043055890,1.60883246,3051.7,3051.5,3.79406181]
[1765043056092,0.4004,3051.6,3051.5,3.79406181]
[1765043056783,0.8603,3051.6,3051.5,3.79406181]
[1765043060296,0.4004,3051.6,3051.5,3.79406181]
[1765043060497,0.65493246,3051.7,3051.5,4.21946181]
[1765043060697,0.65493246,3051.7,3051.5,3.79406181]
[1765043060906,0.65493246,3051.7,3051.5,3.27706181]
[1765043061209,1.11483246,3051.7,3051.5,3.27706181]
[1765043062808,0.4652,3051.6,3051.5,3.27706181]
[1765043065509,0.65493246,3051.7,3051.5,3.27706181]
[1765043066414,1.11483246,3051.7,3051.5,3.27706181]
[1765043067927,0.65493246,3051.9,3051.5,6.55413865]
[1765043068118,0.65493246,3051.9,3051.8,0.4254]
[1765043068934,0.65493246,3051.9,3051.5,6.97953865]
[1765043069622,0.4599,3052.1,3051.8,0.4254]
[1765043069793,0.65493246,3052.0,3051.8,0.4254]
[1765043070910,0.4599,3052.2,3051.8,0.4254]
[1765043071097,0.65493246,3052.0,3051.8,0.4254]
[1765043071412,0.65493246,3052.0,3051.9,3.27664733]
[1765043071613,0.84183246,3052.3,3051.9,3.70204733]
[1765043071817,0.65493246,3052.1,3051.9,3.70204733]
[1765043073527,0.65493246,3052.1,3051.9,0.4254]
[1765043074117,0.65493246,3052.1,3051.9,3.70204679]
[1765043074531,0.65493246,3052.1,3051.9,0.4254]
[1765043076531,0.4652,3052.0,3051.8,0.517]
[1765043076837,1.08383246,3051.9,3051.8,0.517]
[1765043077201,1.54373246,3051.9,3051.8,0.517]
[1765043079897,1.54373246,3051.9,3051.3,0.98375976]
[1765043080111,0.4649,3051.7,3051.5,3.27706598]
[1765043080499,0.9292,3051.7,3051.5,3.27706598]
[1765043081603,0.4649,3051.7,3051.5,3.27706598]
[1765043083234,0.65493246,3051.8,3051.6,0.4254]
[1765043083643,0.4643,3051.9,3051.6,0.4254]
[1765043083844,1.11923246,3052.1,3051.6,0.4254]
[1765043084047,0.65493246,3051.9,3051.6,0.4254]
[1765043084342,0.65493246,3051.9,3051.6,3.70230639]
[1765043084548,1.11923246,3051.9,3051.6,3.70230639]
[1765043087644,0.65493246,3051.7,3051.5,3.27703206]
[1765043087847,1.13713246,3051.7,3051.5,3.27703206]
[1765043088051,0.4077,3051.6,3051.5,3.27703206]
[1765043088650,1.11923246,3051.7,3051.5,3.27703206]
[1765043089754,0.4822,3051.6,3051.5,3.27703206]
[1765043090520,1.11923246,3051.7,3051.5,3.27703206]
[1765043092644,0.65493246,3051.7,3051.5,3.27703206]
[1765043094352,0.65493246,3051.7,3051.6,0.4254]
[1765043094654,0.65493246,3052.1,3051.6,0.8508]
[1765043094842,1.10503246,3052.1,3051.8,0.4254]
[1765043095434,1.10503246,3052.1,3051.7,3.27686207]
[1765043098975,0.65493246,3051.9,3051.7,3.27686207]
[1765043100079,0.65493246,3051.9,3051.6,3.27696945]
[1765043100445,1.10503246,3051.9,3051.6,3.27696945]
[1765043104079,0.65493246,3051.9,3051.6,3.27696945]
[1765043104240,0.65493246,3051.9,3051.6,4.09732246]
[1765043104639,1.10503246,3051.9,3051.6,4.09732246]
[1765043105377,1.10503246,3051.9,3051.6,3.27696945]
[1765043106371,0.65493246,3051.9,3051.6,3.27696945]
[1765043106678,0.65493246,3051.9,3051.6,6.5539389]
[1765043107080,0.65493246,3052.1,3051.8,0.4254]
[1765043107281,1.10503246,3052.1,3051.8,0.4254]
[1765043107579,1.10503246,3052.1,3051.6,6.9793389]
[1765043107880,1.10503246,3052.1,3051.6,7.72897279]
[1765043108480,0.4501,3052.0,3051.6,4.02660334]
[1765043111678,0.65493246,3052.1,3051.6,4.02660334]
[1765043111979,0.65493246,3052.1,3051.6,4.45200334]
[1765043112274,1.11573246,3052.1,3051.6,4.45200334]
[1765043112851,0.4608,3052.0,3051.6,4.02660334]
[1765043113344,0.4608,3052.0,3051.6,7.30357279]
[1765043117121,0.65493246,3051.9,3051.6,4.02660334]
[1765043117376,0.65493246,3051.9,3051.6,3.27696945]
[1765043117580,1.11573246,3051.9,3051.6,3.27696945]
[1765043120988,1.11573246,3051.9,3051.5,3.27706969]
[1765043121490,1.11573246,3051.9,3051.5,6.55414653]
[1765043126491,0.65493246,3051.9,3051.5,3.27706969]
[1765043126692,0.4608,3051.8,3051.5,3.27706969]
[1765043126990,0.4608,3051.8,3051.5,4.04968669]
[1765043127990,0.4608,3051.8,3051.5,7.32676353]
[1765043130392,0.65493246,3051.9,3051.5,7.32676353]
[1765043130575,0.4608,3051.8,3051.5,7.32676353]
[1765043132577,0.4608,3051.8,3051.6,4.26065165]
[1765043137814,1.11413246,3051.7,3051.5,0.517]
[1765043138019,0.434,3051.6,3051.5,3.79399505]
[1765043138178,0.8948,3051.6,3051.5,4.77780965]
[1765043138828,0.8948,3051.6,3051.2,3.27737129]
[1765043138982,0.65493246,3051.4,3051.2,3.27737129]
[1765043139188,0.4974,3051.3,3051.2,3.27737129]
[1765043139622,0.9584,3051.3,3051.2,3.27737129]
[1765043139788,0.4974,3051.3,3051.1,3.93339627]
[1765043139973,0.396,3051.2,3051.1,3.27846381]
[1765043143721,0.857,3051.2,3051.1,0.001]
[1765043146409,1.33591207,3051.2,3051.1,0.001]
[1765043146728,0.857,3051.2,3051.1,0.001]
[1765043147612,1.51193246,3051.2,3051.1,0.001]
[1765043147801,1.64314689,3051.2,3051.1,0.001]
[1765043148201,7.92614157,3051.2,3051.1,0.001]
[1765043148396,11.30354062,3051.2,3051.1,0.001]
[1765043148594,12.87881656,3051.2,3051.1,0.001]
[1765043155620,13.60441067,3051.2,3051.1,0.001]
[1765043160326,17.05241067,3051.2,3051.1,0.001]
[1765043160528,14.12141067,3051.2,3051.1,0.001]
[1765043163029,0.78614689,3051.2,3051.1,0.4264]
[1765043163201,0.65493246,3051.2,3051.1,0.4264]
[1765043164516,0.65493246,3051.2,3051.1,0.001]
[1765043164718,1.62663246,3051.2,3051.1,0.001]
[1765043165236,1.13193246,3051.2,3051.1,0.001]
[1765043170839,0.65493246,3051.2,3051.1,0.001]
[1765043173947,3.93233151,3051.2,3051.1,0.001]
[1765043174142,5.73964858,3051.2,3051.1,0.001]
[1765043174345,5.83964858,3051.2,3051.1,0.001]
[1765043178258,4.97243151,3051.2,3051.1,0.001]
[1765043183358,0.65493246,3051.3,3051.1,0.5548]
[1765043184352,0.65493246,3051.3,3051.1,0.4264]
[1765043184953,0.65493246,3051.5,3051.2,0.4254]
[1765043185160,0.65493246,3051.3,3051.2,0.4254]
[1765043185374,0.65493246,3051.3,3051.2,0.9812]
[1765043185542,0.65493246,3051.5,3051.2,1.4066]
[1765043185866,0.65493246,3051.5,3051.4,0.4254]
[1765043188160,3.9320093,3051.5,3051.4,0.4254]
[1765043188363,3.9320093,3051.5,3051.2,0.5558]
[1765043188565,0.65493246,3051.3,3051.2,0.5558]
[1765043189137,0.65493246,3051.3,3051.2,1.4066]
[1765043189549,0.65493246,3051.3,3051.2,0.9812]
[1765043191270,3.75639914,3051.6,3051.2,0.9812]
[1765043191271,0.65493246,3051.9,3051.2,8.18021559]
[1765043191443,0.65493246,3051.7,3051.3,0.4254]
[1765043191771,0.65493246,3051.5,3051.2,0.49062091]
[1765043192078,0.65493246,3051.5,3051.4,0.98387268]
[1765043192367,0.65493246,3051.5,3051.4,0.94312838]
[1765043192535,0.65493246,3051.5,3051.4,1.36852838]
[1765043193337,0.65493246,3051.8,3051.4,0.94312838]
[1765043193541,0.65493246,3051.8,3051.6,0.4254]
[1765043193736,0.65493246,3051.8,3051.7,0.4254]
[1765043198468,1.11563246,3051.8,3051.4,0.51772838]
[1765043198671,1.11563246,3051.5,3051.2,3.76797545]
[1765043198872,0.65493246,3051.5,3051.2,4.75183523]
[1765043199049,0.65493246,3051.3,3051.2,4.75183523]
[1765043199366,0.65493246,3051.5,3051.4,0.4254]
[1765043200582,0.65493246,3051.5,3051.1,0.1294]
[1765043200583,1.15003246,3051.5,3051.1,0.1294]
[1765043200754,1.15003246,3051.2,3051.1,0.001]
[1765043202377,4.90183151,3051.2,3051.1,0.001]
[1765043202585,5.7197415,3051.2,3051.1,0.001]
[1765043202759,5.8197415,3051.2,3051.1,0.001]
[1765043203869,2.44234245,3051.2,3051.1,0.001]
[1765043204050,1.62443246,3051.2,3051.1,0.001]
[1765043204455,5.00183151,3051.2,3051.1,0.001]
[1765043204992,1.72443246,3051.2,3051.1,0.001]
[1765043208105,1.62443246,3051.2,3051.1,0.001]
[1765043208403,0.65493246,3051.2,3051.1,0.9802]
[1765043208761,0.65493246,3051.2,3051.1,0.5548]
[1765043211606,0.65493246,3051.2,3051.1,0.4264]
[1765043212113,0.65493246,3051.2,3051.1,0.5548]
[1765043215686,0.65493246,3051.2,3051.1,0.4264]
[1765043217805,1.61933246,3051.2,3051.1,0.001]
[1765043218307,0.65493246,3051.2,3051.1,0.001]
[1765043219198,0.65493246,3051.2,3051.1,0.4264]
[1765043219376,0.65493246,3051.2,3051.1,0.5548]
[1765043220877,0.65493246,3051.9,3051.1,11.48424664]
[1765043221077,0.65493246,3051.6,3051.4,0.4254]
[1765043221478,0.65493246,3051.6,3051.1,4.34979679]
[1765043221709,0.65493246,3051.4,3051.2,0.76283898]
[1765043222115,0.65493246,3051.4,3051.3,0.4254]
[1765043222348,0.65493246,3051.4,3051.1,3.92390647]
[1765043222528,0.65493246,3051.2,3051.1,3.92390647]
[1765043223224,0.65493246,3051.2,3051.1,4.34930647]
[1765043224656,0.65493246,3051.2,3051.1,5.22014084]
[1765043226258,1.14263246,3051.6,3051.1,5.64554084]
[1765043226259,0.65493246,3051.6,3051.1,5.64554084]
[1765043226558,0.65493246,3051.6,3051.5,0.4254]
[1765043226859,0.65493246,3051.7,3051.5,3.70247527]
[1765043229340,0.65493246,3051.7,3051.5,4.45215044]
[1765043230780,1.09033224,3051.6,3051.1,3.27842447]
[1765043231091,1.13643246,3051.2,3051.1,3.27842447]
[1765043231497,1.13643246,3051.2,3051.1,0.001]
[1765043231665,1.61153246,3051.2,3051.1,0.001]
[1765043234170,1.83817895,3051.2,3051.1,0.001]
[1765043235667,0.65493246,3051.2,3051.1,0.4264]
[1765043236117,0.65493246,3051.2,3051.1,0.001]
[1765043238642,1.13733246,3051.2,3051.1,0.001]
[1765043244454,1.61243246,3051.2,3051.1,0.001]
[1765043245771,1.6452647,3051.2,3051.1,0.001]
[1765043246131,5.53211327,3051.2,3051.1,0.001]
[1765043246337,5.49928103,3051.2,3051.1,0.001]
[1765043250766,2.22188198,3051.2,3051.1,0.001]
[1765043254458,5.49928103,3051.2,3051.1,0.001]
[1765043254658,2.22188198,3051.2,3051.1,0.001]
[1765043259279,1.61243246,3051.2,3051.1,0.001]
[1765043266802,1.13733246,3051.2,3051.1,0.001]
[1765043267399,0.65493246,3051.2,3051.1,0.4264]
[1765043267626,0.65493246,3051.2,3051.1,0.9802]
[1765043267986,0.65493246,3051.2,3051.1,0.001]
[1765043268294,1.12063246,3051.2,3051.1,0.001]
[1765043268525,0.65493246,3051.2,3051.1,0.001]
[1765043271329,0.65493246,3051.2,3051.1,0.4264]
[1765043272546,0.65493246,3051.4,3051.1,3.83230647]
[1765043272716,0.65493246,3051.2,3051.1,4.24534285]
[1765043272922,0.65493246,3051.2,3051.1,3.81994285]
[1765043273256,0.65493246,3051.2,3051.1,4.24534285]
[1765043273540,0.65493246,3051.2,3051.1,4.67074285]
[1765043277239,0.65493246,3051.4,3051.1,4.67074285]
[1765043277451,0.65493246,3051.4,3051.3,0.4254]
[1765043280458,0.65493246,3051.7,3051.3,1.31787429]
[1765043280750,0.65493246,3051.7,3051.3,0.46707429]
[1765043280751,0.65493246,3051.5,3051.3,0.46707429]
[1765043283452,0.98443224,3051.4,3051.1,0.001]
[1765043283745,0.65493246,3051.2,3051.1,0.001]
[1765043284121,0.65493246,3051.2,3051.1,0.4264]
[1765043286666,0.03283224,3051.4,3051.1,0.4264]
[1765043286880,0.65493246,3051.3,3051.1,0.4264]
[1765043287034,0.65493246,3051.3,3051.1,0.89114121]
[1765043287480,0.65493246,3051.3,3051.2,0.4254]
[1765043289999,0.65493246,3051.3,3051.2,3.70279905]
[1765043291389,0.65493246,3051.5,3051.2,3.70279905]
[1765043291593,0.65493246,3051.7,3051.5,2.697242]
[1765043291882,0.65493246,3052.1,3051.6,0.7376642]
[1765043292037,0.65493246,3051.9,3051.6,0.4254]
[1765043292243,0.65493246,3051.9,3051.8,0.4254]
[1765043293374,0.65493246,3051.9,3051.5,0.4254]
[1765043293688,0.65493246,3051.7,3051.6,3.27696945]
[1765043293904,0.65493246,3051.7,3051.5,3.27704314]
[1765043294057,0.65493246,3051.7,3051.5,3.9841742]
[1765043297297,0.4562,3051.6,3051.5,0.70713106]
[1765043297462,0.9259,3051.6,3051.1,3.40690041]
[1765043297667,0.9259,3051.6,3051.1,0.001]
[1765043297668,0.65493246,3051.3,3051.1,0.001]
[1765043299852,0.9259,3051.2,3051.1,0.001]
[1765043301398,4.20329905,3051.2,3051.1,0.001]
[1765043301606,5.75548284,3051.2,3051.1,0.001]
[1765043302516,2.47808379,3051.2,3051.1,0.001]
[1765043302809,0.421,3050.8,3050.7,3.67292112]
[1765043302969,0.65493246,3051.0,3050.7,3.67292112]
[1765043303174,0.65493246,3050.8,3050.7,3.67292112]
[1765043305171,0.65493246,3050.8,3050.7,4.52372112]
[1765043306201,0.65493246,3050.8,3050.7,4.09832112]
[1765043307409,0.65493246,3051.1,3050.7,4.09832112]
[1765043307571,0.65493246,3051.1,3050.9,0.4254]
[1765043307768,0.65493246,3051.1,3051.0,0.4254]
[1765043308493,1.12463246,3051.4,3051.0,0.4254]
[1765043308806,0.65493246,3051.1,3051.0,0.4254]
[1765043309318,0.65493246,3051.1,3050.7,6.95085733]
[1765043309482,0.65493246,3051.1,3050.8,0.65493246]
[1765043309682,0.65493246,3051.1,3050.7,4.36820685]
[1765043309908,0.65493246,3051.1,3050.7,5.02313931]
[1765043310082,0.65493246,3051.1,3050.7,5.44853931]
[1765043310283,0.65493246,3051.1,3051.0,0.4254]
[1765043313217,0.65493246,3051.1,3050.9,3.27771984]
[1765043313413,0.49105177,3051.1,3050.8,3.27778625]
[1765043314415,0.96075177,3051.1,3050.8,3.27778625]
[1765043314720,1.11113246,3050.9,3050.8,3.27778625]
[1765043315105,0.65493246,3050.9,3050.8,3.27778625]
[1765043315309,0.65493246,3050.9,3050.8,4.39836865]
[1765043318119,1.58083246,3050.9,3050.8,3.27778625]
[1765043318518,0.65493246,3050.9,3050.8,3.27778625]
[1765043319217,0.65493246,3050.9,3050.8,3.70318625]
[1765043319736,0.65493246,3050.9,3050.8,4.12858625]
[1765043320120,0.65493246,3050.9,3050.8,3.70318625]
[1765043320293,0.65493246,3050.9,3050.8,4.90884865]
[1765043320616,0.65493246,3050.9,3050.8,4.48344865]
[1765043326694,1.80923246,3050.9,3050.7,3.67289935]
[1765043326902,0.8723,3050.8,3050.7,3.67289935]
[1765043327396,0.3846,3050.8,3050.7,3.67289935]
[1765043327717,0.65493246,3050.9,3050.8,3.27782876]
[1765043331527,0.65493246,3050.9,3050.7,3.67290404]
[1765043332426,0.9577,3050.8,3050.7,3.67290404]
[1765043332629,0.9577,3050.8,3050.7,4.36820687]
[1765043333129,0.47,3050.8,3050.7,4.36820687]
[1765043333497,0.65493246,3050.9,3050.7,4.36820687]
[1765043333919,1.14263246,3050.9,3050.7,4.36820687]
[1765043337330,0.4865,3050.8,3050.7,1.09030283]
[1765043337558,0.9404,3050.8,3050.7,0.395]
[1765043338842,0.4865,3050.8,3050.7,3.67293621]
[1765043339212,0.4865,3050.8,3050.7,0.395]
[1765043340847,0.4865,3050.8,3050.7,3.67293621]
[1765043341841,0.65493246,3050.9,3050.7,5.21904423]
[1765043342036,0.65493246,3050.9,3050.8,0.4254]
[1765043342660,0.65493246,3050.9,3050.7,3.67293621]
[1765043343186,0.49105177,3051.1,3050.8,0.4254]
[1765043344180,0.65493246,3051.4,3051.0,0.4254]
[1765043344348,0.4539,3051.6,3050.8,0.4254]
[1765043344544,0.65493246,3051.4,3051.1,4.21565]
[1765043344776,0.65493246,3051.4,3051.2,0.517]
[1765043344943,0.4539,3051.6,3051.2,0.517]
[1765043344944,0.4539,3051.6,3051.3,3.27729164]
[1765043345145,0.65493246,3051.5,3051.3,3.27729164]
[1765043345653,0.65493246,3051.5,3051.4,0.4254]
[1765043346859,0.65493246,3051.5,3051.3,3.27729164]
[1765043347057,0.65493246,3051.5,3051.4,0.4254]
[1765043349087,0.65493246,3051.5,3051.4,3.70258424]
[1765043349288,0.65493246,3051.5,3051.3,4.03976197]
[1765043349482,1.11453246,3051.5,3051.3,4.03976197]
[1765043351081,0.4596,3051.4,3051.3,4.03976197]
[1765043351687,0.65493246,3051.5,3051.3,4.03976197]
[1765043356395,0.65493246,3051.5,3051.3,3.27721344]
[1765043359768,0.65493246,3051.5,3051.2,3.7943945]
[1765043359970,1.11453246,3051.3,3051.1,3.27745985]
[1765043360273,0.4353,3051.2,3051.1,3.27745985]
[1765043360478,0.888,3051.2,3051.0,3.27759896]
[1765043360677,0.65493246,3051.1,3051.0,3.27759896]
[1765043360880,1.11433246,3051.1,3051.0,3.27759896]
[1765043361905,1.11433246,3051.1,3050.9,3.27772132]
[1765043363485,0.8883,3051.0,3050.7,3.79493489]
[1765043363689,1.09073246,3050.8,3050.7,3.79493489]
[1765043363999,0.4358,3050.8,3050.6,3.27898641]
[1765043364203,1.56653246,3050.7,3050.6,3.27898641]
[1765043364811,1.11383246,3050.7,3050.6,3.27898641]
[1765043365127,0.65493246,3050.7,3050.6,3.70438641]
[1765043365612,1.10763246,3050.9,3050.6,6.98243007]
[1765043365794,0.65493246,3050.9,3050.6,6.98243007]
[1765043366373,0.65493246,3050.9,3050.6,3.70438641]
[1765043367003,0.65493246,3050.7,3050.6,3.70438641]
[1765043367207,0.65493246,3050.7,3050.6,3.27898641]
[1765043367708,0.65493246,3050.7,3050.6,0.001]
[1765043368099,0.65493246,3050.7,3050.6,0.4264]
[1765043368607,0.4527,3051.0,3050.6,1.17656835]
[1765043368814,0.65493246,3050.9,3050.6,1.17656835]
[1765043369408,1.10763246,3050.9,3050.6,1.17656835]
[1765043369610,1.11453246,3050.7,3050.6,4.02921201]
[1765043371109,0.65493246,3051.1,3050.6,7.73265567]
[1765043371314,0.65493246,3051.1,3050.7,1.19876557]
[1765043371514,1.10763246,3051.1,3050.6,7.40788732]
[1765043371811,0.65493246,3051.1,3050.6,7.40788732]
[1765043372003,0.65493246,3051.1,3050.7,0.4254]
[1765043373216,0.65493246,3051.1,3050.8,3.27782876]
[1765043373602,0.65493246,3051.3,3051.0,0.4254]
[1765043373915,0.65493246,3051.3,3051.2,0.4254]
[1765043374116,0.65493246,3051.3,3050.9,0.4254]
[1765043374310,0.65493246,3051.3,3051.0,0.74980575]
[1765043374912,0.65493246,3051.3,3051.1,3.27750647]
[1765043375488,0.65493246,3051.3,3051.2,0.4254]
[1765043376207,0.4527,3051.6,3051.2,0.4254]
[1765043376409,0.65493246,3051.5,3051.3,0.4254]
[1765043376614,0.65493246,3051.5,3051.2,0.4254]
[1765043376920,0.65493246,3051.7,3051.4,0.4254]
[1765043376921,1.10763246,3051.7,3051.4,0.4254]
[1765043377120,0.65493246,3051.5,3051.4,0.4254]
[1765043377320,1.10763246,3051.7,3051.4,3.70256236]
[1765043377520,0.65493246,3051.6,3051.4,3.70256236]
[1765043383896,0.65493246,3051.6,3051.3,3.2772475]
[1765043383897,0.4921,3051.5,3051.3,3.2772475]
[1765043384103,0.4921,3051.5,3051.4,3.65660899]
[1765043385229,0.4921,3051.5,3051.4,0.37942475]
[1765043385437,0.9802,3051.5,3051.3,3.27726604]
[1765043385732,0.65493246,3051.4,3051.3,3.27726604]
[1765043386332,0.65493246,3051.4,3051.3,6.65747604]
[1765043388440,1.63513246,3051.4,3051.3,3.27726604]
[1765043390533,1.14703246,3051.4,3051.3,3.27726604]
[1765043392242,1.63923246,3051.4,3051.3,3.27726604]
[1765043393419,1.63923246,3051.4,3050.8,9.98617471]
[1765043393420,1.86864895,3051.4,3050.7,3.27787296]
[1765043393620,1.86864895,3051.4,3050.6,0.001]
[1765043393621,0.65493246,3051.2,3050.6,0.001]
[1765043393825,0.65493246,3051.0,3050.6,0.001]
[1765043394021,0.4669,3050.7,3050.6,0.001]
[1765043394339,0.4669,3050.7,3050.6,3.27904366]
[1765043394831,0.4669,3050.7,3050.6,0.001]
[1765043395236,0.4922,3050.9,3050.6,0.001]
[1765043396238,0.4669,3050.7,3050.6,0.001]
[1765043401051,0.9591,3050.7,3050.6,0.001]
[1765043405049,0.4669,3050.7,3050.6,0.001]
[1765043406248,0.65493246,3051.0,3050.6,0.4264]
[1765043406450,0.65493246,3050.8,3050.7,0.4254]
[1765043406840,0.65493246,3051.0,3050.7,0.4254]
[1765043406841,1.14713246,3051.0,3050.7,0.4254]
[1765043407040,1.12183246,3050.8,3050.6,0.001]
[1765043407858,1.61403246,3050.8,3050.6,0.001]
[1765043408025,0.8812,3050.7,3050.6,0.001]
[1765043411261,0.389,3050.7,3050.6,0.001]
[1765043412778,0.65493246,3051.0,3050.6,0.4264]
[1765043412923,0.65493246,3051.0,3050.7,0.4254]
[1765043413327,1.13163246,3051.0,3050.7,0.4254]
[1765043414751,0.65493246,3050.8,3050.7,3.70333621]
[1765043416443,1.13163246,3051.0,3050.7,3.70333621]
[1765043416651,0.65493246,3050.8,3050.7,3.70333621]
[1765043420643,1.11823246,3050.8,3050.7,3.27793621]
[1765043420836,1.59493246,3050.8,3050.7,3.27793621]
[1765043424983,1.59493246,3050.8,3050.6,0.001]
[1765043427449,0.4767,3051.1,3050.6,0.001]
[1765043427654,0.65493246,3051.0,3050.7,0.4254]
[1765043429178,1.13163246,3051.0,3050.7,0.4254]
[1765043429742,1.13163246,3051.0,3050.8,3.27782876]
[1765043430472,0.94,3050.9,3050.8,3.27782876]
[1765043430771,0.94,3050.9,3050.6,3.27895325]